Workbook

Sheet Pollinator Plants
A1: Plants for Pollinators - NRCS Utah - 2014
A2: Potential pollinator plant species to be seeded or planted for pollinator enhancement or to be maintained on the landscape through proper grazing and management.
A4: Plant Name | D4: Bloom Period | L4: Native MLRA http://earth.gis.usu.edu/plants/#sciC | U4: Elevation Range (ft)
A5: Common Name | B5: Scientific Name | C5: Flower Color | D5: Early | E5: Mid | F5: Late | G5: Life Span | H5: Moisture Needs (min. inches) | I5: Single Species lb./ac. | J5: Approx. $ per lb. | K5: Planting Method | L5: D25 | M5: D28 | N5: D29 | O5: D30 | P5: D34 | Q5: D35 | R5: D36 | S5: E47 | T5: E48 | U5: Low | V5: High
A6: Native Forbs
A7: Snowball sand verbena | B7: Abronia fragrans | C7: w | D7: X | E7: X | F7: X | G7: Short | H7: 10 | I7: 6 | J7: 85 | K7: S | M7: x | N7: x | O7: x | P7: x | Q7: x | R7: x | U7: =AI7*3.28 -> 2755.2 | V7: =AJ7*3.28 -> 8462.4 | AI7: 840 | AJ7: 2580
A8: Western yarrow | B8: Achillea millefolium - occidentalis | C8: w | D8: X | E8: X | F8: X | G8: Mid | H8: 10 | I8: 2 | J8: 8.5 | K8: S | L8: x | M8: x | N8: x | R8: x | S8: x | T8: x | U8: 2656.8 | V8: 8954.4 | AI8: 810 | AJ8: 2730
A9: Colorado blue columbine | B9: Aquilegia caerulea | E9: X | G9: Short | H9: 25 | I9: 3 | J9: 100 | K9: S | L9: x | N9: x | S9: x | T9: x | U9: 3968.8 | V9: 10332 | AI9: 1210 | AJ9: 3150
A10: Prickly poppy | B10: Argemone munita | C10: w | D10: X | E10: X | G10: Long | H10: 10 | I10: 4 | J10: 45 | K10: S | M10: x | N10: x | O10: x | Q10: sw | S10: x | U10: 4362.4 | V10: 7150.4 | AI10: 1330 | AJ10: 2180
A11: Showy milkweed | B11: Asclepias speciosa | D11: X | E11: X | G11: Annual | H11: 16 | I11: 15 | J11: Ukn | K11: S | M11: x | P11: x | Q11: x | R11: x | S11: v | T11: v | U11: 4362.4 | V11: 8265.6 | AI11: 1330 | AJ11: 2520
A12: Butterflyweed | B12: Asclepias tuberosa | E12: X | G12: Mid | H12: 28 | I12: 15 | J12: 145 | K12: S | Q12: x | R12: x | U12: 2755.2 | V12: 11152 | AI12: 840 | AJ12: 3400
A13: Woolly locoweed | B13: Astragalus mollissimus | D13: X | E13: X | G13: Mid | H13: 12 | I13: 10 | J13: Unk | K13: S | M13: x | P13: x | Q13: x | R13: x | S13: x | T13: x | U13: 2624 | V13: 8954.4 | AI13: 800 | AJ13: 2730
A14: Cutleaf balsamroot | B14: Balsamorhiza macrophylla | D14: X | E14: X | G14: Mid | H14: 14 | I14: 18 | J14: 60 | K14: S | S14: n | U14: 6756.8 | V14: 10758.4 | AI14: 2060 | AJ14: 3280
A15: Arrowleaf balsamroot | B15: Balsamorhiza sagittata | D15: X | E15: X | G15: Long | H15: 14 | I15: 18 | J15: 50 | K15: S | L15: x | N15: x | S15: x | T15: x | U15: 3181.6 | V15: 6560 | AI15: 970 | AJ15: 2000
A16: Indian paintbrush | B16: Castilleja chromosa | D16: X | E16: X | G16: Mid | H16: 8 | I16: 1 | J16: 160 | K16: T | L16: x | M16: x | N16: x | O16: x | P16: x | Q16: x | R16: x | S16: x | T16: x | U16: 5936.8 | V16: 10955.2 | AI16: 1810 | AJ16: 3340
A17: Douglas dustymaidens | B17: Chaenactis douglasii | E17: X | G17: Short | H17: 10 | I17: 3 | J17: N/A | K17: S | L17: x | M17: m | N17: x | P17: x | S17: x | T17: x | U17: 2984.8 | V17: 7970.4 | AI17: 910 | AJ17: 2430
A18: Yellow beeplant | B18: Cleome lutea | E18: X | G18: Annual | H18: 8 | I18: 11 | J18: 125 | K18: S | M18: x | N18: x | O18: x | P18: x | Q18: x | R18: x | U18: 4952.8 | V18: 9348 | AI18: 1510 | AJ18: 2850
A19: Rocky Mountain beeplant | B19: Cleome serrulata | E19: X | F19: X | G19: Annual | H19: 13 | I19: 17 | J19: 17 | K19: S | M19: x | N19: x | O19: x | P19: x | Q19: x | R19: x | S19: x | U19: 3181.6 | V19: 5477.6 | AI19: 970 | AJ19: 1670
A20: White prairieclover | B20: Dalea candida var. oligophylla | C20: w | E20: X | G20: Mid | H20: 10 | I20: 4 | J20: 50 | K20: S | P20: s | Q20: x | R20: x | U20: =AI21*3.28 -> 4165.6 | V20: =AJ21*3.28 -> 11644 | AI20: 1060 | AJ20: 2280
A21: Aspen fleabane | B21: Erigeron speciosus | E21: X | F21: X | G21: Ukn | H21: 18 | I21: 1 | J21: 6 | K21: S | L21: x | S21: x | T21: x | U21: 2984.8 | V21: 6953.6 | AI21: 1270 | AJ21: 3550
A22: Common blanketflower | B22: Gaillardia aristata | E22: X | F22: X | G22: Mid | H22: 16 | I22: 6 | J22: 15 | K22: S | S22: n | U22: 4067.2 | V22: 9052.8 | AI22: 910 | AJ22: 2120
A23: American licorice | B23: Glycyrrhiza lepidota | C23: w | D23: X | E23: X | G23: Mid | H23: 14 | I23: 1 | J23: 24 | K23: S | M23: x | O23: x | P23: x | Q23: x | R23: x | S23: x | U23: 3968.8 | V23: 8954.4 | AI23: 1240 | AJ23: 2760
A24: Utah sweetvetch | B24: Hedysarum boreale | D24: X | E24: X | G24: Long | H24: 12 | I24: 24 | J24: 60 | K24: S | P24: x | Q24: x | S24: x | T24: x | U24: 4460.8 | V24: 8167.2 | AI24: 1210 | AJ24: 2730
A25: Annual or Tall sunflower | B25: Helianthus annuus | E25: X | F25: X | G25: Annual | H25: 8 | I25: 4 | J25: 16 | K25: S | N25: x | P25: x | Q25: x | S25: x | T25: x | U25: 4952.8 | V25: 10824 | AI25: 1360 | AJ25: 2490
A26: Prairie sunflower | B26: Helianthus petiolaris ssp. fallax | D26: X | E26: X | F26: X | G26: Annual | H26: 12 | I26: 4 | J26: Unk | K26: S | N26: x | O26: x | P26: x | Q26: x | R26: x | U26: 3280 | V26: 5280.8 | AI26: 1510 | AJ26: 3300
A27: Scarlet gillia | B27: Ipomopsis aggregata | E27: X | G27: Short | H27: 13 | I27: 3 | J27: 125 | K27: S | L27: x | M27: m | N27: x | P27: x | Q27: x | R27: x | S27: x | T27: x | U27: 5444.8 | V27: 11939.2 | AI27: 1000 | AJ27: 1610
A28: Blueflag iris | B28: Iris missouriensis | D28: X | E28: X | G28: Long | H28: 24 | I28: 54 | J28: N/A | K28: T | L28: x | S28: x | T28: x | U28: 2755.2 | V28: 6461.6 | AI28: 1660 | AJ28: 3640
A29: Lewis flax | B29: Linum lewisii | G29: Mid | H29: 10 | I29: 4 | J29: 20 | K29: S | L29: x | M29: x | N29: x | P29: x | Q29: x | R29: x | S29: x | T29: x | U29: 2558.4 | V29: 7970.4 | AI29: 840 | AJ29: 1970
A30: Cardinal flower | B30: Lobelia cardinalis | D30: X | E30: X | F30: X | G30: Long | H30: 28 | I30: 0.2 | J30: 250 | K30: S | O30: x | Q30: x | U30: 3280 | V30: 10922.4 | AI30: 780 | AJ30: 2430
A31: Silver lupine | B31: Lupinus argenteus | D31: X | E31: x | G31: Short | H31: 10 | I31: 70 | J31: 70 | K31: S | L31: x | M31: m | N31: x | Q31: x | R31: x | S31: x | T31: x | U31: 5444.8 | V31: 9446.4 | AI31: 1000 | AJ31: 3330
A32: Hoary tansyaster | B32: Machaeranthera canescens | E32: X | F32: X | G32: Ukn | H32: 16 | I32: 3 | J32: Ukn | K32: S | M32: m | N32: x | O32: x | P32: x | Q32: x | R32: x | S32: x | T32: x | U32: 3968.8 | V32: 9446.4 | AI32: 1660 | AJ32: 2880
A33: Tahoka daisy | B33: Machaeranthera tanacetifolia | D33: X | E33: X | G33: Short | H33: 16 | I33: 3 | J33: 50 | K33: S | Q33: x | U33: 6461.6 | V33: 10955.2 | AI33: 1210 | AJ33: 2880
A34: Smoothstem blazingstar | B34: Mentzelia laevicaulis | E34: X | G34: Biennial | H34: 7 | I34: 10 | J34: 30 | K34: S | M34: x | N34: x | O34: x | Q34: sw | S34: v | U34: 4362.4 | V34: 11447.2 | AI34: 1970 | AJ34: 3340
A35: Beebalm | B35: Monardella odoratissima ssp. glauca | D35: X | E35: X | F35: X | G35: Mid | H35: 20 | I35: 3 | J35: Ukn | K35: S | L35: x | M35: m | N35: x | S35: x | T35: x | U35: 2558.4 | V35: 6953.6 | AI35: 1330 | AJ35: 3490
A36: Purple locoweed | B36: Oxytropis lambertii | D36: X | G36: Mid | H36: 16 | I36: 8 | J36: 65 | K36: S | Q36: x | R36: x | S36: x | U36: 4559.2 | V36: 9938.4 | AI36: 780 | AJ36: 2120
A37: Narrowleafed penstemon | B37: Penstemon angustifolia | D37: X | E37: X | G37: Short | H37: 10 | I37: 4 | J37: 65 | K37: S | M37: s | P37: x | Q37: x | R37: x | U37: 4460.8 | V37: 10430.4 | AI37: 1390 | AJ37: 3030
A38: Wasatch penstemon | B38: Penstemon cyananthus | D38: X | E38: X | G38: Long | H38: 12 | I38: 3 | J38: 55 | K38: S | L38: x | S38: x | T38: x | U38: 4952.8 | V38: 10922.4 | AI38: 1360 | AJ38: 3180
A39: Firecracker penstemon | B39: Penstemon eatonii | D39: X | E39: X | G39: Long | H39: 10 | I39: 4 | J39: 72 | K39: S | M39: x | N39: x | O39: x | P39: s | Q39: x | R39: x | S39: x | T39: x | U39: 2853.6 | V39: 8101.6 | AI39: 1510 | AJ39: 3330
A40: Palmer penstemon | B40: Penstemon palmeri | G40: Short | H40: 8 | I40: 3 | J40: 28 | K40: S | M40: s | N40: x | O40: x | Q40: x | U40: 3476.8 | V40: 9938.4 | AI40: 870 | AJ40: 2470
A41: Rocky Mountain penstemon | B41: Penstemon strictus | D41: X | E41: X | G41: Long | H41: 14 | I41: 2 | J41: 48 | K41: S | R41: x | S41: x | T41: x | U41: 3575.2 | V41: 5576 | AI41: 1060 | AJ41: 3030
A42: Scorpionweed | B42: Phacelia crenulata | D42: X | E42: X | G42: Annual | H42: 8 | I42: 2 | J42: 18 | K42: S | M42: s | O42: x | P42: x | Q42: x | R42: x | U42: 3936 | V42: 7478.4 | AI42: 1090 | AJ42: 1700
A43: Silverleaf phacelia | B43: Phacelia hastata | C43: w | D43: X | E43: X | G43: Mid | H43: 10 | I43: 2 | J43: N/A | K43: S | L43: x | S43: x | T43: x | U43: 2624 | V43: 7937.6 | AI43: 1200 | AJ43: 2280
A44: Mexican hat | B44: Ratibida columnifera | E44: X | G44: Mid | H44: 10 | I44: 3 | J44: 20 | K44: S | Q44: x | R44: x | U44: 4460.8 | V44: 7544 | AI44: 800 | AJ44: 2420
A45: Canada goldenrod | B45: Solidago canadensis | F45: X | G45: Long | H45: 16 | I45: 0.5 | J45: Ukn | K45: S | N45: x | Q45: x | R45: x | S45: x | T45: x | U45: 3181.6 | V45: 6560 | AI45: 1360 | AJ45: 2300
A46: Scarlet globemallow | B46: Sphaeralcea coccinea | D46: X | E46: X | G46: Short | H46: 6 | I46: 3 | J46: 115 | K46: S | M46: x | P46: x | Q46: x | R46: x | S46: x | T46: x | U46: 4362.4 | V46: 5772.8 | AI46: 970 | AJ46: 2000
A47: Gooseberryleaf globemallow | B47: Sphaeralcea grossulariifolia | D47: X | E47: X | G47: Mid | H47: 8 | I47: 3 | J47: 85 | K47: S | M47: x | N47: x | O47: x | P47: x | Q47: x | R47: x | S47: v | U47: 2984.8 | V47: 8003.2 | AI47: 1330 | AJ47: 1760
A48: Western aster | B48: Symphyotrichum ascendens | E48: X | F48: X | G48: Ukn | H48: 14 | I48: 1 | J48: Ukn | K48: S | L48: x | M48: x | N48: x | O48: x | P48: x | Q48: x | R48: x | S48: x | T48: x | U48: 2755.2 | V48: 8068.8 | AI48: 910 | AJ48: 2440
A49: American vetch | B49: Vicia americana | D49: X | E49: X | G49: Mid | H49: 10 | I49: 20 | J49: 5 | K49: S | N49: x | R49: x | S49: x | T49: x | U49: 2492.8 | V49: 10430.4 | AI49: 840 | AJ49: 2460
A50: Native Shrubs and Trees | I50: Spacing | L50: D25 | M50: D28 | N50: D29 | O50: D30 | P50: D34 | Q50: D35 | R50: D36 | S50: E47 | T50: E48 | AI50: 760 | AJ50: 3180
A51: Saskatoon serviceberry | B51: Amelanchier alnifolia | C51: w | D51: X | E51: X | G51: Long | H51: 12 | I51: 7.5 | J51: 65 | K51: C/S | L51: x | M51: m | N51: x | S51: x | T51: x | U51: =AI52*3.28 -> 4493.6 | V51: =AJ52*3.28 -> 9151.2
A52: Utah serviceberry | B52: Amerlanchier utahensis | G52: Ukn | H52: 12 | I52: 7.5 | J52: Container | K52: C | L52: x | M52: m | N52: x | O52: x | P52: x | Q52: x | R52: x | S52: x | T52: x | U52: 2689.6 | V52: 8429.6 | AI52: 1370 | AJ52: 2790
A53: Mulefat or Seepwillow | B53: Baccharis salicifolia | C53: w | D53: X | G53: Short | H53: 12^ | I53: 5 | J53: 20 | K53: P/S | O53: x | R53: sw | U53: 3968.8 | V53: 8954.4 | AI53: 820 | AJ53: 2570
A54: Desert ceanothus | B54: Ceanothus greggii | C54: w | D54: X | E54: X | G54: Mid | H54: 12 | I54: 4 | J54: 20 | K54: C/S | N54: x | O54: x | Q54: x | U54: 4362.4 | V54: 7478.4 | AI54: 1210 | AJ54: 2730
A55: Snowbrush ceanothus | B55: Ceanothus velutinus | C55: w | D55: X | E55: X | G55: Ukn | H55: 16 | I55: 3 | J55: Container | K55: C | L55: x | S55: n | T55: n | U55: 4460.8 | V55: 9938.4 | AI55: 1330 | AJ55: 2280
A56: Desert sweet | B56: Chamaebatiaria millefolium | C56: w | E56: X | F56: X | G56: Mid | H56: 15 | I56: 10 | J56: 20 | K56: C/S | M56: x | N56: x | Q56: sw | S56: s | U56: 2755.2 | V56: 8462.4 | AI56: 1360 | AJ56: 3030
A57: Desert willow | B57: Chilopsis linearis | G57: Long | H57: 10^ | I57: 10 | J57: Container | K57: C | N57: x | O57: x | U57: 2755.2 | V57: 3804.8 | AI57: 840 | AJ57: 2580
A58: Green rabbitbrush | B58: Chysothamnus viscidiflorus | G58: Ukn | H58: 7 | I58: 2.5 | J58: Container | K58: C | M58: x | N58: x | O58: x | P58: x | Q58: x | R58: x | S58: x | T58: x | U58: 4001.6 | V58: 8659.2 | AI58: 840 | AJ58: 1160
A59: Shrubby cinquefoil | B59: Dasiphora fruticosa | G59: Ukn | H59: 18 | I59: 5 | J59: Container | K59: C | L59: x | S59: x | T59: x | U59: 3968.8 | V59: 9446.4 | AI59: 1220 | AJ59: 2640
A60: Rubber rabbitbrush | B60: Ericameria (Chysothamnus) nauseosus | E60: X | F60: X | G60: Mid | H60: 7 | I60: 4 | J60: Container | K60: C | L60: x | M60: x | N60: x | O60: x | P60: x | Q60: x | R60: x | S60: x | T60: x | U60: 2755.2 | V60: 6363.2 | AI60: 1210 | AJ60: 2880
A61: Whorled buckwheat | B61: Eriogonum heracleoides | C61: w | E61: X | F61: X | G61: Ukn | H61: 12 | I61: 2 | J61: Container | K61: C | L61: x | S61: n | T61: n | U61: 2755.2 | V61: 10922.4 | AI61: 840 | AJ61: 1940
A62: Sulphur-flower buckwheat | B62: Eriogonum umbellatum | E62: X | F62: X | G62: Long | H62: 12 | I62: 2 | J62: 10 | K62: C/S | L62: x | M62: m | N62: x | Q62: m | R62: x | S62: x | T62: x | U62: 6166.4 | V62: 11742.4 | AI62: 840 | AJ62: 3330
A63: Apache plume | B63: Fallugia paradoxa | C63: w | D63: X | E63: X | G63: Ukn | H63: 8 | I63: 5 | J63: Container | K63: C | N63: x | O63: x | Q63: x | U63: 2788 | V63: 4985.6 | AI63: 1880 | AJ63: 3580
A64: Stretchberry | B64: Forestiera pubescens | G64: Ukn | H64: 9^ | I64: 5 | J64: Container | K64: C | U64: 4460.8 | V64: 11939.2 | AI64: 850 | AJ64: 1520
A65: Mountain spray | B65: Holodiscus dumosus | C65: w | E65: X | F65: X | G65: Mid | H65: 10 | I65: 6 | J65: Container | K65: C | L65: x | M65: x | N65: x | Q65: x | R65: x | S65: x | T65: x | U65: 3378.4 | V65: 10135.2 | AI65: 1360 | AJ65: 3640
A66: Creosote bush | B66: Larrea tridentata | D66: X | G66: Long | H66: 5 | I66: 5 | J66: 12 | K66: C/S | O66: x | U66: 2788 | V66: 9938.4 | AI66: 1030 | AJ66: 3090
A67: Prickly pear | B67: Opuntia spp. | G67: Ukn | H67: 8 | I67: 4 | J67: Container | K67: P | M67: x | N67: x | O67: x | P67: x | Q67: x | R67: x | S67: x | U67: 3968.8 | V67: 10922.4 | AI67: 850 | AJ67: 3030
A68: Littleleaf mockorange | B68: Philadelphus microphyllus | D68: X | G68: Mid | H68: 12 | I68: 6 | J68: 10 | K68: C/S | M68: m | P68: x | S68: x | T68: x | U68: 2984.8 | V68: 6953.6 | AI68: 1210 | AJ68: 3330
A69: Frosted mint | B69: Poliomintha incana | E69: X | G69: Long | H69: 8 | I69: 2 | J69: Container | K69: C | Q69: x | R69: x | U69: 2492.8 | V69: 4395.2 | AI69: 910 | AJ69: 2120
A70: Shrubby cinquefoil | B70: Potentilla fruticosa | D70: X | E70: X | G70: Long | H70: 8 | I70: 5 | J70: 30 | K70: C/S | L70: x | S70: x | T70: x | U70: 2492.8 | V70: 9840 | AI70: 760 | AJ70: 1340
A71: Chokecherry | B71: Prunus virginiana | C71: w | D71: X | G71: Long | H71: 14 | I71: 10 | J71: 12 | K71: C/S | L71: x | M71: m | N71: x | R71: x | S71: x | T71: x | U71: 3083.2 | V71: 5871.2 | AI71: 760 | AJ71: 3000
A72: Mexican cliffrose | B72: Purshia mexicana | D72: X | E72: X | G72: Ukn | H72: 6 | I72: 7.5 | J72: Container | K72: C | M72: x | N72: x | O72: x | P72: x | Q72: x | R72: x | S72: x | U72: 2656.8 | V72: 7150.4 | AI72: 940 | AJ72: 1790
A73: Antelope bitterbrush | B73: Purshia tridentata | D73: X | E73: X | G73: Long | H73: 10 | I73: 5 | J73: 50 | K73: C/S | L73: x | M73: x | N73: x | O73: x | P73: x | Q73: x | R73: x | S73: x | T73: x | U73: 6166.4 | V73: 11742.4 | AI73: 810 | AJ73: 2180
A74: Skunkbush sumac | B74: Rhus trilobata | D74: X | E74: X | G74: Mid | H74: 10 | I74: 5 | J74: 30 | K74: C/S | L74: x | M74: x | N74: x | O74: x | P74: x | Q74: x | R74: x | S74: x | T74: x | U74: 2656.8 | V74: 4920 | AI74: 1880 | AJ74: 3580
A75: Golden currant | B75: Ribes aureum | D75: X | G75: Long | H75: 12 | I75: 5 | J75: Container | K75: C | L75: x | M75: m | N75: x | P75: n | S75: x | T75: x | U75: 3181.6 | V75: 8954.4 | AI75: 810 | AJ75: 1500
A76: New Mexico locust | B76: Robinia neomexicana | D76: X | E76: X | G76: Ukn | H76: 12 | I76: 7.5 | J76: Container | K76: C | N76: x | O76: x | Q76: sw | U76: 5936.8 | V76: 10955.2 | AI76: 970 | AJ76: 2730
A77: Woods' rose | B77: Rosa woodsii | D77: X | E77: X | G77: Long | H77: 12 | I77: 4 | J77: 10 | K77: C/S | L77: x | M77: x | N77: x | O77: x | P77: x | Q77: x | R77: x | S77: x | T77: x | U77: 4952.8 | V77: 8954.4 | AI77: 1810 | AJ77: 3340
A78: Bebb's willow | B78: Salix bebbiana | D78: X | G78: Mid | H78: 20^ | I78: 7.5 | J78: 30 | K78: P/S | N78: x | S78: x | T78: x | U78: 5936.8 | V78: 9446.4 | AI78: 1510 | AJ78: 2730
A79: Coyote willow | B79: Salix exigua | D79: X | G79: Ukn | H79: 20^ | I79: 4 | J79: Container | K79: P | L79: x | M79: x | N79: x | O79: x | P79: x | Q79: x | R79: x | S79: x | T79: x | U79: 4264 | V79: 10725.6 | AI79: 1810 | AJ79: 2880
A80: Purple sage | B80: Salvia dorrii | D80: X | E80: X | G80: Short | H80: 8 | I80: 2.5 | J80: 20 | K80: C/S | M80: s | N80: x | O80: x | Q80: sw | U80: 2558.4 | V80: 6953.6 | AI80: 1300 | AJ80: 3270
A81: Black / Blue elderberry | B81: Sambucus nigra | C81: w | D81: X | E81: X | G81: Ukn | H81: 20 | I81: 8 | J81: Container | K81: C | M81: m | N81: x | Q81: m | R81: x | S81: x | T81: x | U81: 2984.8 | V81: 4493.6 | AI81: 780 | AJ81: 2120
A82: Red elderberry | B82: Sambucus racemosa | C82: w | D82: X | E82: X | G82: Ukn | H82: 24 | I82: 8 | J82: Container | K82: C | M82: m | S82: x | T82: x | U82: 4165.6 | V82: 5969.6 | AI82: 910 | AJ82: 1370
A83: Silver buffaloberry | B83: Sheperdia argentea | D83: X | G83: Mid | H83: 12 | I83: 8 | J83: 60 | K83: C/S | M83: x | P83: x | Q83: x | S83: x | U83: 4952.8 | V83: 9446.4 | AI83: 1270 | AJ83: 1820
A84: Other native flowering plant species with evidence of successful establishment may be added, particularly native congeners of species on this list. Native bunchgrasses can be added to a seed mix (<15% PLS /ft2) as cover for bumblebees. | AI84: 1510 | AJ84: 2880
A86: Bloom Period Key | B86: Spring = April 1 - June 15 | H86: Spring Bloom | K86: Bloom Ending in Summer
B87: Summer = June 15 - August 1 | H87: Late Spring Bloom | K87: Fall Bloom
B88: Fall = August 1 - October 31 | H88: Summer Bloom | K88: Bloom Ending in Early Fall
A90: Introduced Forbs
A91: Cicer milkvetch | B91: Astragalus cicer | E91: X | G91: Long | H91: 12 | I91: 25 | J91: 4
A92: Purple coneflower* | B92: Echinacea purpurea | E92: X | F92: X | G92: Mid | H92: 12 | I92: 4 | J92: 19
A93: California poppy* | B93: Eschscholzia californica | D93: X | E93: X | G93: Short | H93: 8 | I93: 3 | J93: 16
A94: Blue flax | B94: Linum perenne | D94: X | E94: X | G94: Mid | H94: 10 | I94: 4 | J94: 20
A95: Birdsfoot trefoil | B95: Lotus corniculatus | E95: X | G95: Long | H95: 18 | I95: 4 | J95: 3.5
A96: Ladak alfalfa | B96: Medicago sativa | E96: X | F96: X | G96: Long | H96: 8 | I96: 8 | J96: 2.5
A97: Falcata alfalfa | B97: Medicago sativa spp. falcata | D97: X | E97: X | G97: Long | H97: 10 | I97: 7 | J97: 7.5
A98: Sainfoin | B98: Onobrychis viciifolia | D98: X | E98: X | G98: Short | H98: 14 | I98: 34 | J98: 2.25
A99: Black-eyed susan* | B99: Rudbeckia hirta - pulcherrina | E99: X | G99: Mid | H99: 14 | I99: 3 | J99: 14
A100: Strawberry clover | B100: Trifolium fragiferum | E100: X | F100: X | G100: Short | H100: 20 | I100: 4 | J100: 5.5
A101: Rose clover | B101: Trifolium hirtum | E101: X | F101: X | G101: Annual | H101: 10 | I101: 20 | J101: 3
A102: Alsike clover | B102: Trifolium hybridum | D102: X | E102: X | G102: Short | H102: 25 | I102: 3 | J102: 1.5
A103: Red clover | B103: Trifolium pratense | E103: X | F103: X | G103: Short | H103: 35 | I103: 8 | J103: 2
A104: Ladino clover | B104: Trifolium repens | C104: w | D104: X | E104: X | G104: Short | H104: 35 | I104: 2 | J104: 3.4
A105: * - primarily an introduced species in Utah. Native range is very limited.
A108: Recommended Websites for Further Plant Information | H108: Planting Key | K108: MLRA Key
A109: Digital Plant Atlas | B109: http://earth.gis.usu.edu/plants/#commonR | H109: C - Container | K109: x | L109: Broadly distributed
A110: USDA PLANTS | B110: http://plants.usda.gov/java/ | H110: P - Pole or Cutting | K110: n | L110: Northern portion
A111: FEIS USFS | B111: http://www.fs.fed.us/database/feis/plants/ | H111: T - Transplant | K111: s | L111: Southern prstion
A112: USU Range Plants of Utah | B112: http://extension.usu.edu/rangeplants/ | H112: S - Seed | K112: sw | L112: Southwestern portion
A113: SW CO Wildflowers | B113: http://www.swcoloradowildflowers.com/index.htm | H113: Moisture Key | K113: m | L113: Mountains within this MLRA
A114: Lady Bird Johnson Wildflower Center | B114: http://www.wildflower.org/plants/ | H114: ^ - Riparian | K114: v | L114: Valleys within this MLRA
A115: Native Seed Network | B115: http://www.nativeseednetwork.org/ecomap?state=UT
A123: Sept 2014

Sheet MLRA Utah

Sheet Crop Flower Period
A1: Crop Flowering Period
B3: BLOOM PERIOD^
A4: PLANT | B4: D25 | C4: D28A | D4: D29 | E4: D30 | F4: D34A | G4: D34B | H4: D35 | I4: D36 | J4: E47
A5: Tart Cherry | B5: Late May | C5: May | D5: Late May | E5: April | F5: June | G5: May | H5: Late Apr | I5: May | J5: June
A6: Sweet Cherry | B6: Late May | C6: May | D6: Late May | E6: April | F6: June | G6: May | H6: Late Apr | I6: May | J6: June
A7: Peach | B7: Late May | C7: May | D7: Late May | E7: April | F7: June | G7: May | H7: Late Apr | I7: May | J7: June
A8: Apricot | B8: Late May | C8: May | D8: Late May | E8: April | F8: June | G8: May | H8: Late Apr | I8: May | J8: June
A9: Plum | B9: Late May | C9: May | D9: Late May | E9: April | F9: June | G9: May | H9: Late Apr | I9: May | J9: June
A10: Pear | B10: Late May | C10: May | D10: Late May | E10: April | F10: June | G10: May | H10: Late Apr | I10: May | J10: June
A11: Apple | B11: Late May | C11: May | D11: Late May | E11: April | F11: June | G11: May | H11: Late Apr | I11: May | J11: June
A12: Pistachio | B12: n/a | C12: n/a | D12: n/a | E12: April | F12: n/a | G12: n/a | H12: n/a | I12: n/a | J12: n/a
A13: Pecan | B13: n/a | C13: n/a | D13: n/a | E13: April | F13: n/a | G13: n/a | H13: n/a | I13: n/a | J13: n/a
A14: Grape | B14: Late May | C14: May | D14: Late May | E14: April | F14: June | G14: May | H14: Late Apr | I14: May | J14: June
A16: Melons | B16: late July-> | C16: mid July-> | D16: late July-> | E16: mid Jun-> | F16: late July-> | G16: mid July-> | H16: early Jul-> | I16: late July-> | J16: late July->
A17: Watermelon | B17: late July-> | C17: mid July-> | D17: late July-> | E17: mid Jun-> | F17: late July-> | G17: mid July-> | H17: early Jul-> | I17: late July-> | J17: late July->
A18: Winter Squash | B18: late July-> | C18: mid July-> | D18: late July-> | E18: mid Jun-> | F18: late July-> | G18: mid July-> | H18: early Jul-> | I18: late July-> | J18: late July->
A19: Pumpkin | B19: late July-> | C19: mid July-> | D19: late July-> | E19: mid Jun-> | F19: late July-> | G19: mid July-> | H19: early Jul-> | I19: late July-> | J19: late July->
A20: Zucchini | B20: late July-> | C20: mid July-> | D20: late July-> | E20: mid Jun-> | F20: late July-> | G20: mid July-> | H20: early Jul-> | I20: late July-> | J20: late July->
A22: Raspberry | B22: Late May | C22: May | D22: Late May | E22: April | F22: June | G22: May | H22: Late Apr | I22: May | J22: June
A23: Blackberry | B23: Late May | C23: May | D23: Late May | E23: April | F23: June | G23: May | H23: Late Apr | I23: May | J23: June
A24: Strawberry | B24: Late May | C24: May | D24: Late May | E24: April | F24: June | G24: May | H24: Late Apr | I24: May | J24: June
A26: Tomato | B26: late July-> | C26: mid July-> | D26: late July-> | E26: mid Jun-> | F26: late July-> | G26: mid July-> | H26: early Jul-> | I26: mid Jun-> | J26: late July->
A28: Hay Alfalfa* | B28: mid Jun-> | C28: early Jun-> | D28: mid Jun-> | E28: mid Jun-> | F28: late June-> | G28: early Jun-> | H28: early Jul-> | I28: mid Jun-> | J28: late June->
A29: Seed Alfalfa | B29: mid Jun-> | C29: early Jun-> | D29: mid Jun-> | E29: mid Jun-> | F29: late June-> | G29: early Jun-> | H29: early Jul-> | I29: mid Jun-> | J29: late June->
B31: ^ - Bloom period can vary by year, by variety, and within a MLRA by a few weeks.
B32: * - Hay alfalfa does not require pollination, but may be a floral resource for pollinators.
B33: Arrows indicate that flowering is ongoing after this period.
A35: More info on MLRA characteristics: http://www.nrcs.usda.gov/Internet/FSE_DOCUMENTS/nrcs141p2_033620.pdf

Sheet Pollinators by Crop
A49: From:

Sheet Pollinator Syndromes

Sheet Sample Seed Mix
A1: Pollinator Planting Sample Seed Mixes
A2: Common Name | B2: Scientific | C2: Utah Native | D2: Flower Spring | E2: Flower Summer | F2: Flower Fall | G2: Color | H2: Life Span | I2: Moisture Needs | J2: Life Form | K2: Approx. Cost / lb. (2014 Est.) | L2: PLS (variable) | M2: Seed / lb | N2: Recommended lb / ac | O2: Seed / ac | P2: Seed / sq. ft. | Q2: PLS / sq. ft. | R2: Seed cost / ac
A3: Central Utah Mix (10"-14" precipitation)
A4: Lewis Flax | B4: Linum lewisii | C4: X | D4: X | E4: X | G4: Lt. Blue | H4: Mid | I4: 10 | J4: P | K4: 20 | L4: 0.81 | M4: 286000 | N4: 1.5 | O4: =N4*M4 -> 429000 | P4: =O4/43560 -> 9.848484848 | Q4: =P4*L4 -> 7.977272727 | R4: =K4*N4 -> 30
A5: Palmer Penstemon | B5: Penstemon palmeri | C5: X | D5: X | E5: X | G5: Pink | H5: Long | I5: 10 | J5: P | K5: 28 | L5: 0.76 | M5: 600000 | N5: 0.5 | O5: 300000 | P5: 6.887052342 | Q5: =P5*L5 -> 5.23415978 | R5: 14
A6: Firecracker Penstemon | B6: Penstemon eatonii | C6: X | D6: X | E6: X | G6: Red | H6: Long | I6: 10 | J6: P | K6: 72 | L6: 0.76 | M6: 600000 | N6: 0.25 | O6: 150000 | P6: 3.443526171 | Q6: =P6*L6 -> 2.61707989 | R6: 18
A7: Rocky Mtn Beeplant | B7: Cleome serrulata | C7: X | E7: X | F7: X | G7: Pink | H7: Annual | I7: 10 | J7: A | K7: 20 | L7: 0.81 | M7: 66000 | N7: 2 | O7: 132000 | P7: 3.03030303 | Q7: 2.454545455 | R7: 40
A8: Scarlet Gilia | B8: Ipomopsis aggregata | C8: X | E8: X | G8: Red | H8: Mid | I8: 10 | J8: P | K8: 125 | L8: 0.88 | M8: 200000 | N8: 0.25 | O8: 50000 | P8: 1.147842057 | Q8: 1.01010101 | R8: 31.25
A9: Western Yarrow | B9: Achillea millefolium occidentalis | C9: X | D9: X | E9: X | F9: X | G9: White | H9: Mid | I9: 10 | J9: P | K9: 22 | L9: 0.83 | M9: 4124000 | N9: 0.1 | O9: 412400 | P9: 9.467401286 | Q9: 7.857943067 | R9: 2.2
A10: Common Sunflower | B10: Helianthus annuus | C10: X | E10: X | F10: X | G10: Yellow | H10: Annual | I10: 10 | J10: A | K10: 16 | L10: 0.64 | M10: 60000 | N10: 2 | O10: =N10*M10 -> 120000 | P10: =O10/43560 -> 2.754820937 | Q10: =P10*L10 -> 1.763085399 | R10: =K10*N10 -> 32
A11: Alfalfa (Ladak) | B11: Medicago sativa | D11: X | E11: X | F11: X | G11: Purple | H11: Long | I11: 8 | J11: P | K11: 2.25 | L11: 0.83 | M11: 225000 | N11: 1 | O11: =N11*M11 -> 225000 | P11: =O11/43560 -> 5.165289256 | Q11: 4.287190083 | R11: =K11*N11 -> 2.25
A12: Gooseberry-leaf Globemallow | B12: Sphaeralcea grossulariifolia | C12: X | D12: X | E12: X | G12: Orange | H12: Mid | I12: 8 | J12: P | K12: 75 | L12: 0.91 | M12: 335000 | N12: 0.25 | O12: =N12*M12 -> 83750 | P12: =O12/43560 -> 1.922635445 | Q12: 1.749598255 | R12: =K12*N12 -> 18.75
A13: Rubber Rabbitbrush | B13: Chrysothamnus nauseosus | C13: X | E13: X | F13: X | G13: Yellow | H13: Mid | I13: 10 | J13: P | K13: 35 | L13: 0.12 | M13: 756000 | N13: 0.75 | O13: =N13*M13 -> 567000 | P13: =O13/43560 -> 13.01652893 | Q13: =P13*L13 -> 1.561983471 | R13: =K13*N13 -> 26.25
A14: Bottlebrush Squirreltail | B14: Elymus elymoides | C14: X | D14: n/a | E14: n/a | F14: n/a | G14: grass | H14: Short | I14: 8 | J14: P | K14: 20 | L14: 0.72 | M14: 192000 | N14: 0.5 | O14: 96000 | P14: 2.203856749 | Q14: =P14*L14 -> 1.58677686 | R14: 10
A15: Bluebunch Wheatgrass | B15: Pseudoroegneria spicata | C15: X | D15: n/a | E15: n/a | F15: n/a | G15: grass | H15: Long | I15: 8 | J15: P | K15: 6 | L15: 0.77 | M15: 126000 | N15: 1.5 | O15: 189000 | P15: 4.338842975 | Q15: =P15*L15 -> 3.340909091 | R15: 9
N16: =SUM(N4:N15) -> 10.6 | O16: 2754150 | P16: 63.22658402 | Q16: 41.44064509 | R16: =SUM(R4:R15) -> 233.7
A18: SE Utah Mix (10"-14" precipitation)
A19: Scorpionweed | B19: Phacelia crenulata | C19: X | D19: X | E19: X | G19: Purple | H19: Annual | I19: 8 | J19: A | K19: 18 | L19: 0.8 | M19: 800000 | N19: 0.75 | O19: =N19*M19 -> 600000 | P19: =O19/43560 -> 13.77410468 | Q19: =P19*L19 -> 11.01928375 | R19: =K19*N19 -> 13.5
A20: Lewis Flax | B20: Linum lewisii | C20: X | D20: X | E20: X | G20: Lt. Blue | H20: Mid | I20: 10 | J20: P | K20: 20 | L20: 0.81 | M20: 286000 | N20: 0.5 | O20: 143000 | P20: 3.282828283 | Q20: =P20*L20 -> 2.659090909 | R20: 10
A21: Firecracker Penstemon | B21: Penstemon eatonii | C21: X | D21: X | E21: X | G21: Red | H21: Long | I21: 10 | J21: P | K21: 72 | L21: 0.76 | M21: 600000 | N21: 0.25 | O21: 150000 | P21: 3.443526171 | Q21: =P21*L21 -> 2.61707989 | R21: 18
A22: Rocky Mtn Penstemon | B22: Penstemon strictus | C22: X | D22: X | E22: X | G22: Purple | H22: Long | I22: 14 | J22: P | K22: 48 | L22: 0.8 | M22: 478000 | N22: 0.5 | O22: 239000 | P22: 5.486685032 | Q22: =P22*L22 -> 4.389348026 | R22: 24
A23: White Prairieclover | B23: Dalea candida | C23: X | E23: X | G23: White | H23: Mid | I23: 12 | J23: P | K23: 50 | L23: 0.8 | M23: 160000 | N23: 1 | O23: 160000 | P23: 3.673094582 | Q23: =P23*L23 -> 2.938475666 | R23: 50
A24: Rocky Mountain Beeplant | B24: Cleome serrulata | C24: X | E24: X | F24: X | G24: Purple | H24: Annual | I24: 13 | J24: A | K24: 17 | L24: 0.81 | M24: 66000 | N24: 2 | O24: 132000 | P24: 3.03030303 | Q24: =P24*L24 -> 2.454545455 | R24: 34
A25: Western Yarrow | B25: Achillea millefolium occidentalis | C25: X | D25: X | E25: X | F25: X | G25: White | H25: Mid | I25: 10 | J25: P | K25: 8.5 | L25: 0.83 | M25: 4124000 | N25: 0.05 | O25: 206200 | P25: =O25/43560 -> 4.733700643 | Q25: =P25*L25 -> 3.928971534 | R25: 0.425
A26: Mexican Hat | B26: Ratibida columnifera | C26: X | E26: X | G26: Red | H26: Mid | I26: 10 | J26: P | K26: 20 | L26: 0.8 | M26: 600000 | N26: 0.5 | O26: 300000 | P26: =O26/43560 -> 6.887052342 | Q26: =P26*L26 -> 5.509641873 | R26: 10
A27: Gooseberry-leaf Globemallow | B27: Sphaeralcea grossulariifolia | C27: X | D27: X | E27: X | G27: Orange | H27: Mid | I27: 8 | J27: P | K27: 75 | L27: 0.91 | M27: 335000 | N27: 0.25 | O27: 83750 | P27: =O27/43560 -> 1.922635445 | Q27: =P27*L27 -> 1.749598255 | R27: 18.75
A28: Rubber Rabbitbrush | B28: Chrysothamnus nauseosus | C28: X | E28: X | F28: X | G28: Yellow | H28: Mid | I28: 10 | J28: P | K28: 35 | L28: 0.12 | M28: 756000 | N28: 0.75 | O28: 567000 | P28: 13.01652893 | Q28: =L28*P28 -> 1.561983471 | R28: 26.25
A29: Indian Ricegrass | B29: Achnatherum hymenoides | C29: X | D29: n/a | E29: n/a | F29: n/a | G29: grass | H29: Mid | I29: 9 | J29: P | K29: 7.5 | L29: 0.88 | M29: 162000 | N29: 1 | O29: 162000 | P29: 3.719008264 | Q29: 3.272727273 | R29: 7.5
A30: Bottlebrush Squirreltail | B30: Elymus elymoides | C30: X | D30: n/a | E30: n/a | F30: n/a | G30: grass | H30: Short | I30: 8 | J30: P | K30: 20 | L30: 0.72 | M30: 192000 | N30: 0.5 | O30: 96000 | P30: 2.203856749 | Q30: =P30*L30 -> 1.58677686 | R30: 10
N31: =SUM(N19:N30) -> 8.05 | O31: 2838950 | P31: 65.17332415 | Q31: 43.68752296 | R31: =SUM(R19:R30) -> 222.425
A33: Northern Utah Mix (10"-14" precipitation)
A34: Lewis Flax | B34: Linum lewisii | C34: X | D34: X | E34: X | G34: Lt. Blue | H34: Mid | I34: 10 | J34: P | K34: 20 | L34: 0.81 | M34: 286000 | N34: 1.5 | O34: =N34*M34 -> 429000 | P34: =O34/43560 -> 9.848484848 | Q34: =P34*L34 -> 7.977272727 | R34: =K34*N34 -> 30
A35: Firecracker Penstemon | B35: Penstemon eatonii | C35: X | D35: X | E35: X | G35: Red | H35: Long | I35: 10 | J35: P | K35: 72 | L35: 0.76 | M35: 600000 | N35: 0.25 | O35: 150000 | P35: 3.443526171 | Q35: =P35*L35 -> 2.61707989 | R35: 18
A36: Rocky Mtn Beeplant | B36: Cleome serrulata | C36: X | E36: X | F36: X | G36: Pink | H36: Annual | I36: 10 | J36: A | K36: 20 | L36: 0.81 | M36: 66000 | N36: 2 | O36: 132000 | P36: 3.03030303 | Q36: =P36*L36 -> 2.454545455 | R36: 40
A37: Scarlet Gilia | B37: Ipomopsis aggregata | C37: X | E37: X | G37: Red | H37: Mid | I37: 10 | J37: P | K37: 125 | L37: 0.88 | M37: 200000 | N37: 0.25 | O37: 50000 | P37: 1.147842057 | Q37: 1.01010101 | R37: 31.25
A38: Western Yarrow | B38: Achillea millefolium occidentalis | C38: X | D38: X | E38: X | F38: X | G38: White | H38: Mid | I38: 10 | J38: P | K38: 22 | L38: 0.83 | M38: 4124000 | N38: 0.15 | O38: 618600 | P38: 14.20110193 | Q38: 11.7869146 | R38: 3.3
A39: Common Sunflower | B39: Helianthus annuus | C39: X | E39: X | F39: X | G39: Yellow | H39: Annual | I39: 10 | J39: A | K39: 16 | L39: 0.64 | M39: 60000 | N39: 2.5 | O39: 150000 | P39: 3.443526171 | Q39: =P39*L39 -> 2.203856749 | R39: 40
A40: Alfalfa (Ladak) | B40: Medicago sativa | D40: X | E40: X | F40: X | G40: Purple | H40: Long | I40: 8 | J40: P | K40: 2.25 | L40: 0.83 | M40: 225000 | N40: 1 | O40: 225000 | P40: 5.165289256 | Q40: 4.287190083 | R40: 2.25
A41: Gooseberry-leaf Globemallow | B41: Sphaeralcea grossulariifolia | C41: X | D41: X | E41: X | G41: Orange | H41: Mid | I41: 8 | J41: P | K41: 75 | L41: 0.91 | M41: 335000 | N41: 0.25 | O41: =N41*M41 -> 83750 | P41: =O41/43560 -> 1.922635445 | Q41: 1.749598255 | R41: =K41*N41 -> 18.75
A42: Rubber Rabbitbrush | B42: Chrysothamnus nauseosus | C42: X | E42: X | F42: X | G42: Yellow | H42: Mid | I42: 10 | J42: P | K42: 35 | L42: 0.12 | M42: 756000 | N42: 0.75 | O42: =N42*M42 -> 567000 | P42: =O42/43560 -> 13.01652893 | Q42: =P42*L42 -> 1.561983471 | R42: =K42*N42 -> 26.25
A43: Bottlebrush Squirreltail | B43: Elymus elymoides | C43: X | D43: n/a | E43: n/a | F43: n/a | G43: grass | H43: Short | I43: 8 | J43: P | K43: 20 | L43: 0.72 | M43: 192000 | N43: 0.75 | O43: 144000 | P43: 3.305785124 | Q43: =P43*L43 -> 2.380165289 | R43: 15
A44: Bluebunch Wheatgrass | B44: Pseudoroegneria spicata | C44: X | D44: n/a | E44: n/a | F44: n/a | G44: grass | H44: Long | I44: 8 | J44: P | K44: 6 | L44: 0.77 | M44: 126000 | N44: 1.5 | O44: 189000 | P44: 4.338842975 | Q44: =P44*L44 -> 3.340909091 | R44: 9
N45: =SUM(N34:N44) -> 10.9 | O45: 2738350 | P45: 62.86386593 | Q45: 41.36961662 | R45: =SUM(R34:R44) -> 233.8
B47: Spring = April 1 - June 15 | D47: Spring Bloom | G47: Bloom Ending in Summer
B48: Summer = June 15 - August 1 | D48: Late Spring Bloom | G48: Fall Bloom
B49: Fall = August 1 - October 31 | D49: Summer Bloom | G49: Bloom Ending in Early Fall

Sheet Seed Vendors
A1: See:
A2: Aberdeen PMC TN 33 (below) | B2: http://www.nrcs.usda.gov/Internet/FSE_PLANTMATERIALS/publications/idpmctn5853.pdf
A3: Native Seed Network | B3: http://www.nativeseednetwork.org/ecomap?state=UT
